[Event "GrandPrix_29.05"]
[Site "Chess.com"]
[Date "2020.05.29"]
[Round "7"]
[White "vladislavkovalev"]
[Black "francyIM"]
[Result "1-0"]
[WhiteElo "2773"]
[BlackElo "2582"]
[TimeControl "600+2"]
[EndTime "12:34:05 PDT"]
[Termination "vladislavkovalev won by resignation"]

1. e4 {[%clk 0:10:01.5]} 1... e5 {[%clk 0:09:55.6]} 2. Nf3 {[%clk 0:10:02.4]}
2... Nc6 {[%clk 0:09:56.3]} 3. Bb5 {[%clk 0:10:03.9]} 3... a6 {[%clk 0:09:54.7]}
4. Ba4 {[%clk 0:10:05]} 4... Nf6 {[%clk 0:09:49.7]} 5. O-O {[%clk 0:10:05.8]}
5... b5 {[%clk 0:09:46.9]} 6. Bb3 {[%clk 0:10:06.8]} 6... Bb7 {[%clk 0:09:48]}
7. d3 {[%clk 0:10:02.5]} 7... Bc5 {[%clk 0:09:46.9]} 8. Nc3 {[%clk 0:10:01.5]}
8... h6 {[%clk 0:09:45.3]} 9. a3 {[%clk 0:10:01.9]} 9... d6 {[%clk 0:09:46.2]}
10. Ne2 {[%clk 0:10:02.8]} 10... O-O {[%clk 0:09:45]} 11. Ng3 {[%clk 0:10:04.3]}
11... Bb6 {[%clk 0:09:44.4]} 12. h3 {[%clk 0:10:01.9]} 12... d5 {[%clk
0:09:40.4]} 13. exd5 {[%clk 0:08:39.6]} 13... Nxd5 {[%clk 0:09:42.3]} 14. Re1
{[%clk 0:08:32.5]} 14... Re8 {[%clk 0:09:39.6]} 15. Bd2 {[%clk 0:08:12.2]} 15...
Qd7 {[%clk 0:09:30.5]} 16. Ne4 {[%clk 0:07:54]} 16... Nd4 {[%clk 0:09:14.4]} 17.
Nxd4 {[%clk 0:07:52.3]} 17... exd4 {[%clk 0:09:16]} 18. Qg4 {[%clk 0:07:16.5]}
18... Qxg4 {[%clk 0:08:00.3]} 19. hxg4 {[%clk 0:07:18.4]} 19... Rad8 {[%clk
0:07:48.8]} 20. Bxh6 {[%clk 0:06:23.8]} 20... Ba5 {[%clk 0:06:26.8]} 21. Bd2
{[%clk 0:06:23.5]} 21... Rxe4 {[%clk 0:06:23.8]} 22. dxe4 {[%clk 0:05:28.1]}
22... Bxd2 {[%clk 0:06:23.1]} 23. Red1 {[%clk 0:05:12.3]} 23... Nf6 {[%clk
0:06:16.4]} 24. Rxd2 {[%clk 0:05:11.2]} 24... Nxe4 {[%clk 0:06:15.7]} 25. Re2
{[%clk 0:04:13.3]} 25... c5 {[%clk 0:06:14.1]} 26. f3 {[%clk 0:04:10.3]} 26...
Nd6 {[%clk 0:06:14]} 27. Rd1 {[%clk 0:03:50.4]} 27... Kf8 {[%clk 0:06:03.8]} 28.
Ba2 {[%clk 0:03:44.1]} 28... Nc4 {[%clk 0:05:49.6]} 29. b4 {[%clk 0:02:39.8]}
29... Nb2 {[%clk 0:04:57]} 30. Rb1 {[%clk 0:02:19.4]} 30... Na4 {[%clk
0:04:56.5]} 31. Rbe1 {[%clk 0:01:28.9]} 31... c4 {[%clk 0:04:48.3]} 32. Re5
{[%clk 0:01:19.6]} 32... Nc3 {[%clk 0:04:42.2]} 33. Bb1 {[%clk 0:01:20.1]} 33...
Bd5 {[%clk 0:04:24.7]} 34. g5 {[%clk 0:01:18.2]} 34... g6 {[%clk 0:04:22.6]} 35.
Kf2 {[%clk 0:01:17.1]} 35... Be6 {[%clk 0:04:21.6]} 36. g4 {[%clk 0:01:12.8]}
36... d3 {[%clk 0:04:17.3]} 37. cxd3 {[%clk 0:01:11.4]} 37... cxd3 {[%clk
0:04:19.1]} 38. R5e3 {[%clk 0:01:10.3]} 38... Bc4 {[%clk 0:01:44.3]} 39. Rc1
{[%clk 0:01:11.2]} 39... d2 {[%clk 0:01:45.3]} 40. Rexc3 {[%clk 0:01:10]} 40...
dxc1=Q {[%clk 0:01:43.5]} 41. Rxc1 {[%clk 0:01:11.9]} 41... Rd2+ {[%clk
0:01:44.6]} 42. Kg3 {[%clk 0:00:52.8]} 42... Bd5 {[%clk 0:01:05.4]} 43. Rc5
{[%clk 0:00:48]} 43... Ke7 {[%clk 0:01:03]} 44. Kf4 {[%clk 0:00:49.3]} 44... Kd6
{[%clk 0:01:02.6]} 45. Bc2 {[%clk 0:00:50.5]} 45... Rf2 {[%clk 0:01:01]} 46. Rc3
{[%clk 0:00:49.5]} 46... Rd2 {[%clk 0:00:53]} 47. Be4 {[%clk 0:00:44.8]} 47...
Bc4 {[%clk 0:00:51]} 48. Re3 {[%clk 0:00:43.7]} 48... Rd4 {[%clk 0:00:50.2]} 49.
Re1 {[%clk 0:00:37.1]} 49... Rd2 {[%clk 0:00:46.2]} 50. Rc1 {[%clk 0:00:31.7]}
50... Kc7 {[%clk 0:00:39.2]} 51. Ke5 {[%clk 0:00:29.9]} 51... Kb6 {[%clk
0:00:37.5]} 52. Rc2 {[%clk 0:00:26.9]} 52... Rd1 {[%clk 0:00:36.4]} 53. Rc3
{[%clk 0:00:19.1]} 53... a5 {[%clk 0:00:37.2]} 54. f4 {[%clk 0:00:17.8]} 54...
Rg1 {[%clk 0:00:34.8]} 55. Bd3 {[%clk 0:00:07.9]} 55... axb4 {[%clk 0:00:20.8]}
56. axb4 {[%clk 0:00:08.7]} 56... Rg3 {[%clk 0:00:22.4]} 57. Bxc4 {[%clk
0:00:05]} 57... Rxc3 {[%clk 0:00:23.2]} 58. Bxf7 {[%clk 0:00:06.9]} 58... Re3+
{[%clk 0:00:24.7]} 59. Kd4 {[%clk 0:00:06.6]} 59... Rf3 {[%clk 0:00:24.6]} 60.
Ke4 {[%clk 0:00:07.4]} 60... Rg3 {[%clk 0:00:25.9]} 61. Bxg6 {[%clk 0:00:07.5]}
61... Rxg4 {[%clk 0:00:27.5]} 62. Bf7 {[%clk 0:00:08.5]} 62... Kc7 {[%clk
0:00:27.9]} 63. Kf5 {[%clk 0:00:08.9]} 63... Rg1 {[%clk 0:00:28.2]} 64. Kf6
{[%clk 0:00:10]} 64... Kd6 {[%clk 0:00:29.2]} 65. g6 {[%clk 0:00:11.3]} 1-0

[Event "GrandPrix_29.05"]
[Site "Chess.com"]
[Date "2020.05.29"]
[Round "7"]
[White "etserga"]
[Black "ChessQueen"]
[Result "1/2-1/2"]
[WhiteElo "2082"]
[BlackElo "2037"]
[TimeControl "600+2"]
[EndTime "12:34:07 PDT"]
[Termination "Game drawn by repetition"]

1. Nf3 {[%clk 0:09:51.2]} 1... Nf6 {[%clk 0:09:59.7]} 2. c4 {[%clk 0:09:50.4]}
2... b6 {[%clk 0:09:59.2]} 3. b3 {[%clk 0:09:49.9]} 3... Bb7 {[%clk 0:09:56.2]}
4. e3 {[%clk 0:09:50.4]} 4... e6 {[%clk 0:09:55.5]} 5. Bb2 {[%clk 0:09:50.7]}
5... Be7 {[%clk 0:09:51]} 6. Nc3 {[%clk 0:09:44.5]} 6... d5 {[%clk 0:09:40.8]}
7. g3 {[%clk 0:09:36.2]} 7... Nbd7 {[%clk 0:09:36.4]} 8. d4 {[%clk 0:09:30.1]}
8... Ne4 {[%clk 0:09:19.2]} 9. Bg2 {[%clk 0:09:17.4]} 9... c5 {[%clk 0:06:55.2]}
10. O-O {[%clk 0:08:47]} 10... Nxc3 {[%clk 0:06:38]} 11. Bxc3 {[%clk 0:08:44.8]}
11... O-O {[%clk 0:06:38.5]} 12. cxd5 {[%clk 0:08:13.9]} 12... Bxd5 {[%clk
0:06:35.9]} 13. Qe2 {[%clk 0:08:09.1]} 13... cxd4 {[%clk 0:06:27.4]} 14. Bxd4
{[%clk 0:08:03.8]} 14... Nc5 {[%clk 0:05:57.3]} 15. Rfd1 {[%clk 0:07:53]} 15...
Qc8 {[%clk 0:05:05.3]} 16. Ne1 {[%clk 0:05:54]} 16... Bxg2 {[%clk 0:04:43.6]}
17. Nxg2 {[%clk 0:05:50.2]} 17... Qb7 {[%clk 0:04:02]} 18. Nf4 {[%clk
0:05:40.7]} 18... Ne4 {[%clk 0:03:28.6]} 19. f3 {[%clk 0:05:13.7]} 19... Nf6
{[%clk 0:03:10.6]} 20. e4 {[%clk 0:05:12.3]} 20... Rfd8 {[%clk 0:03:10.5]} 21.
Kg2 {[%clk 0:05:02.7]} 21... Rxd4 {[%clk 0:03:01]} 22. Rxd4 {[%clk 0:04:59.4]}
22... e5 {[%clk 0:03:02.4]} 23. Rdd1 {[%clk 0:04:46.5]} 23... exf4 {[%clk
0:03:03.5]} 24. gxf4 {[%clk 0:04:46.7]} 24... Re8 {[%clk 0:03:04.2]} 25. Qb5
{[%clk 0:04:30.9]} 25... a6 {[%clk 0:02:59]} 26. Qc4 {[%clk 0:04:18.3]} 26... b5
{[%clk 0:02:44.8]} 27. Qd4 {[%clk 0:04:13]} 27... Nh5 {[%clk 0:02:32.4]} 28. e5
{[%clk 0:04:02.8]} 28... g6 {[%clk 0:02:33.5]} 29. Qe3 {[%clk 0:03:53.8]} 29...
Bf8 {[%clk 0:02:31.3]} 30. f5 {[%clk 0:03:43.2]} 30... Qe7 {[%clk 0:02:24.8]}
31. fxg6 {[%clk 0:03:34.2]} 31... hxg6 {[%clk 0:02:22.2]} 32. Rd4 {[%clk
0:03:32.3]} 32... Bg7 {[%clk 0:02:13.8]} 33. Re4 {[%clk 0:03:29.1]} 33... Qa3
{[%clk 0:01:54]} 34. Kh3 {[%clk 0:03:11.7]} 34... Qb2 {[%clk 0:01:51.1]} 35. Re1
{[%clk 0:03:10.7]} 35... Kh7 {[%clk 0:01:43.5]} 36. f4 {[%clk 0:03:02.9]} 36...
Qxa2 {[%clk 0:01:31.8]} 37. Qf3 {[%clk 0:03:00.4]} 37... Qb2 {[%clk 0:01:17.3]}
38. R1e2 {[%clk 0:02:56]} 38... Qa1 {[%clk 0:01:12.2]} 39. Re1 {[%clk
0:02:48.1]} 39... Qb2 {[%clk 0:01:12]} 40. R1e2 {[%clk 0:02:48.6]} 40... Qc1
{[%clk 0:01:13]} 41. f5 {[%clk 0:02:09]} 41... Qg5 {[%clk 0:01:08.5]} 42. f6
{[%clk 0:02:02.5]} 42... Bh6 {[%clk 0:01:07.9]} 43. e6 {[%clk 0:01:45.1]} 43...
Nf4+ {[%clk 0:01:07.8]} 44. Rxf4 {[%clk 0:01:41.8]} 44... Qxf4 {[%clk
0:01:09.7]} 45. Qxf4 {[%clk 0:01:00.6]} 45... Bxf4 {[%clk 0:01:11.6]} 46. Kg4
{[%clk 0:01:01.3]} 46... Bc1 {[%clk 0:00:27.3]} 47. e7 {[%clk 0:00:52.1]} 47...
Ba3 {[%clk 0:00:27.9]} 48. Re4 {[%clk 0:00:48.8]} 48... Bd6 {[%clk 0:00:20.9]}
49. h4 {[%clk 0:00:41.1]} 49... a5 {[%clk 0:00:20.4]} 50. Kg5 {[%clk 0:00:39.9]}
50... a4 {[%clk 0:00:20.2]} 51. bxa4 {[%clk 0:00:40]} 51... bxa4 {[%clk
0:00:21.2]} 52. Rxa4 {[%clk 0:00:40.2]} 52... Bxe7 {[%clk 0:00:22.5]} 53. fxe7
{[%clk 0:00:37.7]} 53... Kg7 {[%clk 0:00:21.1]} 54. Ra7 {[%clk 0:00:21]} 54...
f6+ {[%clk 0:00:21.7]} 55. Kg4 {[%clk 0:00:22]} 55... Kf7 {[%clk 0:00:23.3]} 56.
h5 {[%clk 0:00:23.2]} 56... gxh5+ {[%clk 0:00:24]} 57. Kxh5 {[%clk 0:00:22.1]}
57... Rxe7 {[%clk 0:00:25.6]} 58. Ra1 {[%clk 0:00:19.4]} 58... Re4 {[%clk
0:00:25]} 59. Ra6 {[%clk 0:00:19]} 59... Ke7 {[%clk 0:00:23.7]} 60. Rb6 {[%clk
0:00:19.8]} 60... Rd4 {[%clk 0:00:24]} 61. Ra6 {[%clk 0:00:20.2]} 61... Rd6
{[%clk 0:00:25]} 62. Ra5 {[%clk 0:00:21.2]} 62... Rd4 {[%clk 0:00:21.7]} 63. Ra6
{[%clk 0:00:17.5]} 63... Kf7 {[%clk 0:00:22.3]} 64. Rb6 {[%clk 0:00:17.7]} 64...
Rc4 {[%clk 0:00:23.2]} 65. Ra6 {[%clk 0:00:18.5]} 65... Ke7 {[%clk 0:00:19.5]}
66. Rb6 {[%clk 0:00:19]} 66... Rf4 {[%clk 0:00:20.5]} 67. Ra6 {[%clk 0:00:19.1]}
67... Re4 {[%clk 0:00:19.5]} 68. Rb6 {[%clk 0:00:18.7]} 68... Rd4 {[%clk
0:00:20.5]} 69. Ra6 {[%clk 0:00:19.6]} 1/2-1/2

[Event "GrandPrix_29.05"]
[Site "Chess.com"]
[Date "2020.05.29"]
[Round "7"]
[White "Mesropov_Konstantin"]
[Black "GM_dmitrij"]
[Result "1/2-1/2"]
[WhiteElo "2325"]
[BlackElo "2470"]
[TimeControl "600+2"]
[EndTime "12:34:09 PDT"]
[Termination "Game drawn by repetition"]

1. c4 {[%clk 0:10:01.9]} 1... e5 {[%clk 0:09:34.5]} 2. g3 {[%clk 0:09:59.8]}
2... c6 {[%clk 0:09:35.2]} 3. Nf3 {[%clk 0:09:59.9]} 3... e4 {[%clk 0:09:34.9]}
4. Nd4 {[%clk 0:10:00.9]} 4... d5 {[%clk 0:09:36.5]} 5. cxd5 {[%clk 0:10:01.8]}
5... Qxd5 {[%clk 0:09:38.4]} 6. e3 {[%clk 0:10:03.1]} 6... Nf6 {[%clk 0:09:34]}
7. Nc3 {[%clk 0:10:00.2]} 7... Qe5 {[%clk 0:09:34.2]} 8. Bg2 {[%clk 0:09:50.8]}
8... Bc5 {[%clk 0:09:31.9]} 9. d3 {[%clk 0:09:51.7]} 9... Bg4 {[%clk 0:09:15.3]}
10. f3 {[%clk 0:08:44]} 10... exf3 {[%clk 0:08:28.9]} 11. Nxf3 {[%clk
0:08:43.6]} 11... Qh5 {[%clk 0:08:25.7]} 12. d4 {[%clk 0:08:15.5]} 12... Bb4
{[%clk 0:08:21]} 13. O-O {[%clk 0:08:13.5]} 13... O-O {[%clk 0:08:18.7]} 14. Qb3
{[%clk 0:08:05.1]} 14... a5 {[%clk 0:07:51.1]} 15. Ne5 {[%clk 0:07:36.5]} 15...
Be6 {[%clk 0:07:46.8]} 16. Qd1 {[%clk 0:07:20.7]} 16... Qxd1 {[%clk 0:07:41.5]}
17. Rxd1 {[%clk 0:07:19.8]} 17... Nbd7 {[%clk 0:07:14.7]} 18. Nxd7 {[%clk
0:07:17]} 18... Bxd7 {[%clk 0:07:04.8]} 19. e4 {[%clk 0:07:06.1]} 19... Bg4
{[%clk 0:07:05.2]} 20. Rd3 {[%clk 0:06:52.1]} 20... Rfe8 {[%clk 0:06:46.7]} 21.
h3 {[%clk 0:05:54.2]} 21... Bh5 {[%clk 0:06:18]} 22. e5 {[%clk 0:05:31.5]} 22...
Nd7 {[%clk 0:06:18.2]} 23. a3 {[%clk 0:05:03.6]} 23... Bf8 {[%clk 0:06:13.1]}
24. Bf4 {[%clk 0:04:40.8]} 24... Rad8 {[%clk 0:06:10]} 25. g4 {[%clk 0:03:15.7]}
25... Bg6 {[%clk 0:06:07.4]} 26. Rdd1 {[%clk 0:03:17.1]} 26... Nb6 {[%clk
0:04:59]} 27. Ne4 {[%clk 0:03:16.5]} 27... Nd5 {[%clk 0:04:50.9]} 28. Bg5 {[%clk
0:03:04.4]} 28... Rd7 {[%clk 0:04:00.7]} 29. Re1 {[%clk 0:02:47.2]} 29... Nc7
{[%clk 0:03:48.6]} 30. Nd6 {[%clk 0:02:28.5]} 30... Bxd6 {[%clk 0:03:14.7]} 31.
exd6 {[%clk 0:02:28.5]} 31... Ne6 {[%clk 0:03:15.6]} 32. d5 {[%clk 0:01:51]}
32... cxd5 {[%clk 0:03:13.5]} 33. Be7 {[%clk 0:01:26.6]} 33... Nf4 {[%clk
0:03:14.2]} 34. Bf1 {[%clk 0:01:19.1]} 34... Bd3 {[%clk 0:03:13.2]} 35. Bg5
{[%clk 0:01:07.1]} 35... Ne2+ {[%clk 0:02:56.9]} 36. Kf2 {[%clk 0:01:07.1]}
36... Rxd6 {[%clk 0:02:01.5]} 37. Bxe2 {[%clk 0:01:06.1]} 37... Be4 {[%clk
0:02:01.4]} 38. Bf3 {[%clk 0:01:01.7]} 38... Rb6 {[%clk 0:01:58]} 39. Re2 {[%clk
0:00:49]} 39... Rb3 {[%clk 0:01:54.3]} 40. Bxe4 {[%clk 0:00:49.5]} 40... Rxe4
{[%clk 0:01:52]} 41. Rxe4 {[%clk 0:00:45.5]} 41... dxe4 {[%clk 0:01:53.9]} 42.
Be3 {[%clk 0:00:41.4]} 42... f6 {[%clk 0:01:13.8]} 43. Rc1 {[%clk 0:00:36.8]}
43... Rxb2+ {[%clk 0:01:13.9]} 44. Kg3 {[%clk 0:00:37]} 44... g5 {[%clk
0:01:12.3]} 45. Rc3 {[%clk 0:00:24.3]} 45... b5 {[%clk 0:01:04]} 46. Bd4 {[%clk
0:00:21.5]} 46... Rb1 {[%clk 0:00:59.6]} 47. Bxf6 {[%clk 0:00:19.8]} 47... b4
{[%clk 0:00:50.1]} 48. axb4 {[%clk 0:00:19.9]} 48... axb4 {[%clk 0:00:52]} 49.
Rc8+ {[%clk 0:00:16.8]} 49... Kf7 {[%clk 0:00:52.7]} 50. Bxg5 {[%clk 0:00:16.8]}
50... b3 {[%clk 0:00:53.4]} 51. Rb8 {[%clk 0:00:14.8]} 51... Ke6 {[%clk
0:00:53.6]} 52. Be3 {[%clk 0:00:13.5]} 52... Kd5 {[%clk 0:00:54.8]} 53. Kh4
{[%clk 0:00:13.2]} 53... Kc4 {[%clk 0:00:55.6]} 54. Kg5 {[%clk 0:00:12.1]} 54...
Kd3 {[%clk 0:00:56.7]} 55. Bf4 {[%clk 0:00:12.4]} 55... Kc2 {[%clk 0:00:48.8]}
56. Rc8+ {[%clk 0:00:12.5]} 56... Kd3 {[%clk 0:00:49.7]} 57. Rd8+ {[%clk
0:00:13.6]} 57... Kc2 {[%clk 0:00:47.9]} 58. Rc8+ {[%clk 0:00:13.4]} 58... Kd3
{[%clk 0:00:47.7]} 59. Rd8+ {[%clk 0:00:13.3]} 59... Ke2 {[%clk 0:00:42.9]} 60.
Re8 {[%clk 0:00:09.6]} 60... Kf3 {[%clk 0:00:43]} 61. Rb8 {[%clk 0:00:08.5]}
61... e3 {[%clk 0:00:40.3]} 62. Bxe3 {[%clk 0:00:08.8]} 62... Kxe3 {[%clk
0:00:42.2]} 63. h4 {[%clk 0:00:09.9]} 63... Kd4 {[%clk 0:00:40.4]} 64. Kh6
{[%clk 0:00:09.6]} 64... Kc4 {[%clk 0:00:40.2]} 65. h5 {[%clk 0:00:08.9]} 65...
Rg1 {[%clk 0:00:37.6]} 66. g5 {[%clk 0:00:09.5]} 66... Kc3 {[%clk 0:00:37.5]}
67. Rc8+ {[%clk 0:00:09.5]} 67... Kd4 {[%clk 0:00:36.7]} 68. Rb8 {[%clk
0:00:09.5]} 68... Kc3 {[%clk 0:00:38.2]} 69. Rc8+ {[%clk 0:00:09.1]} 69... Kd3
{[%clk 0:00:39.7]} 70. Rb8 {[%clk 0:00:09.8]} 70... Kc3 {[%clk 0:00:41.2]}
1/2-1/2

[Event "GrandPrix_29.05"]
[Site "Chess.com"]
[Date "2020.05.29"]
[Round "7"]
[White "SamadovRead"]
[Black "Flawless_Fighter"]
[Result "0-1"]
[WhiteElo "1972"]
[BlackElo "2242"]
[TimeControl "600+2"]
[EndTime "12:34:09 PDT"]
[Termination "Flawless_Fighter won by resignation"]

1. d4 {[%clk 0:10:01.9]} 1... Nf6 {[%clk 0:10:00.2]} 2. c4 {[%clk 0:10:00.8]}
2... e6 {[%clk 0:10:01.5]} 3. g3 {[%clk 0:10:02]} 3... d5 {[%clk 0:10:02.3]} 4.
Bg2 {[%clk 0:10:02.9]} 4... Bb4+ {[%clk 0:10:03.8]} 5. Nd2 {[%clk 0:10:02.9]}
5... O-O {[%clk 0:10:02.9]} 6. Nf3 {[%clk 0:10:03]} 6... dxc4 {[%clk 0:09:57.9]}
7. Qc2 {[%clk 0:10:03.6]} 7... b5 {[%clk 0:09:34.6]} 8. a4 {[%clk 0:10:01.8]}
8... bxa4 {[%clk 0:08:53.6]} 9. O-O {[%clk 0:09:42.4]} 9... Bb7 {[%clk
0:08:45.5]} 10. Nxc4 {[%clk 0:09:33.9]} 10... a5 {[%clk 0:08:25.1]} 11. Bd2
{[%clk 0:09:16.6]} 11... Nbd7 {[%clk 0:07:37.7]} 12. Rxa4 {[%clk 0:08:50.7]}
12... c5 {[%clk 0:06:58.6]} 13. dxc5 {[%clk 0:07:44.5]} 13... Nxc5 {[%clk
0:06:55.7]} 14. Bxb4 {[%clk 0:07:14.3]} 14... Be4 {[%clk 0:06:36.9]} 15. Qd1
{[%clk 0:06:17.1]} 15... Qxd1 {[%clk 0:05:45.1]} 16. Rxd1 {[%clk 0:06:16.9]}
16... Nxa4 {[%clk 0:05:46.6]} 17. Bxf8 {[%clk 0:06:15.7]} 17... Kxf8 {[%clk
0:05:46]} 18. Ra1 {[%clk 0:06:05.1]} 18... Nc5 {[%clk 0:05:05.9]} 19. Rxa5
{[%clk 0:05:51.9]} 19... Rxa5 {[%clk 0:04:15.7]} 20. Nxa5 {[%clk 0:05:52.3]}
20... Ke7 {[%clk 0:04:13.4]} 21. Ne5 {[%clk 0:05:30]} 21... Bxg2 {[%clk
0:04:07.6]} 22. Kxg2 {[%clk 0:05:30.4]} 22... Nd5 {[%clk 0:04:08.2]} 23. Nec6+
{[%clk 0:04:39.9]} 23... Kd6 {[%clk 0:04:06.9]} 24. b4 {[%clk 0:02:48.5]} 24...
Na6 {[%clk 0:03:42.9]} 25. b5 {[%clk 0:02:48.4]} 25... Nac7 {[%clk 0:03:41.1]}
26. Nb7+ {[%clk 0:02:28.7]} 26... Kd7 {[%clk 0:03:36.3]} 27. Nc5+ {[%clk
0:02:29.7]} 27... Ke8 {[%clk 0:03:01.7]} 28. e4 {[%clk 0:01:50.6]} 28... Nb6
{[%clk 0:02:57.3]} 29. Na7 {[%clk 0:01:43.7]} 29... e5 {[%clk 0:02:48.9]} 30.
Na6 {[%clk 0:01:33.1]} 30... Ne6 {[%clk 0:02:17.1]} 31. Nc6 {[%clk 0:01:25.8]}
31... f6 {[%clk 0:02:14.9]} 32. Kf3 {[%clk 0:01:16.4]} 32... Kd7 {[%clk
0:01:57.5]} 33. Ke3 {[%clk 0:01:08.2]} 33... g5 {[%clk 0:01:19.5]} 34. Kd3
{[%clk 0:00:49.2]} 34... g4 {[%clk 0:01:19.6]} 35. Kc3 {[%clk 0:00:47.6]} 35...
Kd6 {[%clk 0:00:51.4]} 36. Kb4 {[%clk 0:00:42.3]} 36... h5 {[%clk 0:00:50.5]}
37. Ka5 {[%clk 0:00:38.4]} 37... Nc4+ {[%clk 0:00:51]} 38. Kb4 {[%clk
0:00:39.6]} 38... Nd2 {[%clk 0:00:20.8]} 39. Na5 {[%clk 0:00:38.7]} 39... Nxe4
{[%clk 0:00:19.1]} 40. b6 {[%clk 0:00:40]} 40... Nd8 {[%clk 0:00:06.8]} 41. b7
{[%clk 0:00:35.8]} 41... Nxb7 {[%clk 0:00:07.9]} 42. Nxb7+ {[%clk 0:00:37.5]}
42... Kd5 {[%clk 0:00:04.8]} 43. Nbc5 {[%clk 0:00:21.9]} 43... Nxf2 {[%clk
0:00:05.3]} 44. Nd7 {[%clk 0:00:21.6]} 44... f5 {[%clk 0:00:03.9]} 45. Nf6+
{[%clk 0:00:22.9]} 45... Kd4 {[%clk 0:00:05.4]} 46. Nxh5 {[%clk 0:00:23.6]}
46... Ke3 {[%clk 0:00:06.3]} 47. Ng7 {[%clk 0:00:23.8]} 47... f4 {[%clk
0:00:07.4]} 48. Nf5+ {[%clk 0:00:22.9]} 48... Ke4 {[%clk 0:00:07.9]} 49. Nd6+
{[%clk 0:00:23.5]} 49... Kf3 {[%clk 0:00:06.8]} 50. gxf4 {[%clk 0:00:24]} 50...
exf4 {[%clk 0:00:08.7]} 51. Nf5 {[%clk 0:00:23.3]} 51... Kg2 {[%clk 0:00:08.5]}
52. Nc5 {[%clk 0:00:21.5]} 52... Kxh2 {[%clk 0:00:09.6]} 53. Ne6 {[%clk
0:00:22.8]} 53... Nh3 {[%clk 0:00:06.9]} 54. Kc4 {[%clk 0:00:21.6]} 54... f3
{[%clk 0:00:07.8]} 55. Kd3 {[%clk 0:00:21.6]} 55... f2 {[%clk 0:00:05.7]} 56.
Ke2 {[%clk 0:00:22.4]} 56... Kg1 {[%clk 0:00:06.3]} 57. Ng3 {[%clk 0:00:20.8]}
57... Kg2 {[%clk 0:00:06.2]} 58. Nf1 {[%clk 0:00:07.9]} 58... Ng1+ {[%clk
0:00:07]} 59. Ke3 {[%clk 0:00:09.3]} 59... Kxf1 {[%clk 0:00:07.6]} 60. Nf4
{[%clk 0:00:11.1]} 60... g3 {[%clk 0:00:06.3]} 61. Nh5 {[%clk 0:00:12.4]} 61...
Kg2 {[%clk 0:00:06.8]} 62. Nxg3 {[%clk 0:00:14.2]} 62... Kxg3 {[%clk 0:00:07.5]}
63. Ke4 {[%clk 0:00:16.1]} 63... f1=Q {[%clk 0:00:08.4]} 0-1